[Event "Titled Tuesday Blitz November 14 Late 2023"]
[White "Quirke, Jeffrey"]
[Black "Prithu Gupta"]
[WhiteFideId "2013029"]
[BlackFideId "46618546"]
[WhiteElo "2288"]
[BlackElo "2581"]
[Result "0-1"]
[Round "1"]
[TimeControl "180+1"]
[Date "2023.11.14"]
[WhiteClock "0:00:00"]
[BlackClock "0:02:09"]
[Board "131"]

1. e4 {[%clk 0:03:00]}  e5 {[%clk 0:02:59]} 2. Nf3 {[%clk 0:02:59]}  Nc6 {[%clk 0:03:00]} 3. Nc3 {[%clk 0:02:57]}  Nf6 {[%clk 0:03:00]} 4. h3 {[%clk 0:02:57]}  Be7 {[%clk 0:02:58]} 5. d4 {[%clk 0:02:53]}  exd4 {[%clk 0:02:58]} 6. Nxd4 {[%clk 0:02:53]}  O-O {[%clk 0:02:58]} 7. Bc4 {[%clk 0:02:51]}  Nxe4 {[%clk 0:02:52]} 8. Nxe4 {[%clk 0:02:35]}  d5 {[%clk 0:02:48]} 9. Nxc6 {[%clk 0:02:29]}  bxc6 {[%clk 0:02:48]} 10. O-O {[%clk 0:02:26]}  dxc4 {[%clk 0:02:48]} 11. Be3 {[%clk 0:02:16]}  Bf5 {[%clk 0:02:42]} 12. f3 {[%clk 0:01:40]}  Bxe4 {[%clk 0:02:36]} 13. fxe4 {[%clk 0:01:39]}  Bf6 {[%clk 0:02:35]} 14. c3 {[%clk 0:01:06]}  Rb8 {[%clk 0:02:26]} 15. Qc2 {[%clk 0:00:50]}  Qd3 {[%clk 0:02:23]} 16. Qxd3 {[%clk 0:00:45]}  cxd3 {[%clk 0:02:24]} 17. Rf2 {[%clk 0:00:35]}  a6 {[%clk 0:02:17]} 18. Rd1 {[%clk 0:00:34]}  Rfd8 {[%clk 0:02:16]} 19. Rfd2 {[%clk 0:00:23]}  Kf8 {[%clk 0:02:15]} 20. b3 {[%clk 0:00:21]}  Bxc3 {[%clk 0:02:14]} 21. Rxd3 {[%clk 0:00:22]}  Rxd3 {[%clk 0:02:11]} 22. Rxd3 {[%clk 0:00:23]}  Ba5 {[%clk 0:02:12]} 23. Bc5+ {[%clk 0:00:20]}  Ke8 {[%clk 0:02:11]} 24. Kf2 {[%clk 0:00:19]}  Bb6 {[%clk 0:02:10]} 25. Bxb6 {[%clk 0:00:18]}  cxb6 {[%clk 0:02:11]} 26. Kf3 {[%clk 0:00:16]}  Rd8 {[%clk 0:02:11]} 27. Ke3 {[%clk 0:00:12]}  Rxd3+ {[%clk 0:02:11]} 28. Kxd3 {[%clk 0:00:12]}  Ke7 {[%clk 0:02:11]} 29. b4 {[%clk 0:00:09]}  Ke6 {[%clk 0:02:12]} 30. Kd4 {[%clk 0:00:09]}  f5 {[%clk 0:02:08]} 31. exf5+ {[%clk 0:00:00]}  Kxf5 {[%clk 0:02:09]} 0-1


[Site "https://www.chess.com"]

[Event "Titled Tuesday Blitz November 14 Late 2023"]
[White "Lymar, Vladislav"]
[Black "Senft, Sean"]
[WhiteFideId "14162180"]
[BlackFideId "2044960"]
[WhiteElo "2579"]
[BlackElo "2286"]
[Result "1-0"]
[Round "1"]
[TimeControl "180+1"]
[Date "2023.11.14"]
[WhiteClock "0:00:27"]
[BlackClock "0:00:00"]
[Board "132"]

1. d4 {[%clk 0:03:00]}  d5 {[%clk 0:02:51]} 2. c4 {[%clk 0:03:00]}  c6 {[%clk 0:02:49]} 3. Nf3 {[%clk 0:02:59]}  Nf6 {[%clk 0:02:45]} 4. e3 {[%clk 0:02:59]}  a6 {[%clk 0:02:44]} 5. Qc2 {[%clk 0:02:50]}  g6 {[%clk 0:02:40]} 6. cxd5 {[%clk 0:02:41]}  cxd5 {[%clk 0:02:39]} 7. Bd3 {[%clk 0:02:39]}  Bg7 {[%clk 0:02:28]} 8. Nc3 {[%clk 0:02:38]}  Nc6 {[%clk 0:02:28]} 9. a3 {[%clk 0:02:38]}  O-O {[%clk 0:02:28]} 10. O-O {[%clk 0:02:39]}  Bg4 {[%clk 0:02:24]} 11. Ne5 {[%clk 0:02:29]}  Rc8 {[%clk 0:02:17]} 12. Nxg4 {[%clk 0:02:21]}  Nxg4 {[%clk 0:02:17]} 13. h3 {[%clk 0:02:17]}  Nf6 {[%clk 0:02:17]} 14. Bd2 {[%clk 0:02:16]}  e5 {[%clk 0:02:15]} 15. dxe5 {[%clk 0:02:14]}  Nxe5 {[%clk 0:02:16]} 16. Be2 {[%clk 0:02:13]}  Nc4 {[%clk 0:02:12]} 17. Rad1 {[%clk 0:02:08]}  Nxd2 {[%clk 0:01:52]} 18. Qxd2 {[%clk 0:02:06]}  Qa5 {[%clk 0:01:47]} 19. Nxd5 {[%clk 0:01:44]}  Qxd5 {[%clk 0:01:47]} 20. Qxd5 {[%clk 0:01:42]}  Nxd5 {[%clk 0:01:47]} 21. Rxd5 {[%clk 0:01:43]}  Bxb2 {[%clk 0:01:47]} 22. Rb1 {[%clk 0:01:42]}  Rc1+ {[%clk 0:01:27]} 23. Rxc1 {[%clk 0:01:41]}  Bxc1 {[%clk 0:01:27]} 24. a4 {[%clk 0:01:42]}  Ba3 {[%clk 0:01:16]} 25. Rd7 {[%clk 0:01:38]}  b5 {[%clk 0:01:12]} 26. axb5 {[%clk 0:01:38]}  axb5 {[%clk 0:01:12]} 27. Bxb5 {[%clk 0:01:39]}  Bb2 {[%clk 0:00:59]} 28. Bc4 {[%clk 0:01:38]}  Kg7 {[%clk 0:00:57]} 29. g4 {[%clk 0:01:37]}  h5 {[%clk 0:00:56]} 30. gxh5 {[%clk 0:01:37]}  gxh5 {[%clk 0:00:57]} 31. Kg2 {[%clk 0:01:37]}  Bf6 {[%clk 0:00:53]} 32. Kf3 {[%clk 0:01:38]}  Bh4 {[%clk 0:00:53]} 33. Rd5 {[%clk 0:01:33]}  Kh6 {[%clk 0:00:44]} 34. Rf5 {[%clk 0:01:33]}  f6 {[%clk 0:00:43]} 35. Ke2 {[%clk 0:01:23]}  Rb8 {[%clk 0:00:41]} 36. Bf7 {[%clk 0:01:22]}  Rb2+ {[%clk 0:00:39]} 37. Kf1 {[%clk 0:01:22]}  Kg7 {[%clk 0:00:16]} 38. Bxh5 {[%clk 0:01:21]}  Bg5 {[%clk 0:00:16]} 39. Be2 {[%clk 0:01:17]}  Kf7 {[%clk 0:00:13]} 40. Bc4+ {[%clk 0:01:15]}  Kg6 {[%clk 0:00:14]} 41. Bd3 {[%clk 0:01:16]}  Kf7 {[%clk 0:00:14]} 42. Rc5 {[%clk 0:00:57]}  Ke6 {[%clk 0:00:12]} 43. Rc4 {[%clk 0:00:56]}  Kd5 {[%clk 0:00:11]} 44. h4 {[%clk 0:00:53]}  Bh6 {[%clk 0:00:12]} 45. Rg4 {[%clk 0:00:49]}  Ke5 {[%clk 0:00:09]} 46. h5 {[%clk 0:00:45]}  Rb8 {[%clk 0:00:08]} 47. Rg6 {[%clk 0:00:44]}  Rh8 {[%clk 0:00:09]} 48. Kg2 {[%clk 0:00:42]}  Ke6 {[%clk 0:00:06]} 49. f4 {[%clk 0:00:37]}  Kf7 {[%clk 0:00:03]} 50. Kf3 {[%clk 0:00:37]}  Bxf4 {[%clk 0:00:02]} 51. Bc4+ {[%clk 0:00:30]}  Ke7 {[%clk 0:00:01]} 52. exf4 {[%clk 0:00:28]}  Rxh5 {[%clk 0:00:02]} 53. Rg7+ {[%clk 0:00:28]}  Kd6 {[%clk 0:00:00]} 54. Rf7 {[%clk 0:00:27]} 1-0


[Site "https://www.chess.com"]

[Event "Titled Tuesday Blitz November 14 Late 2023"]
[White "Lima, Kleyton Alcantara"]
[Black "FM_Kappeler"]
[WhiteFideId "22718397"]
[WhiteElo "2578"]
[BlackElo "2282"]
[Result "1-0"]
[Round "1"]
[TimeControl "180+1"]
[Date "2023.11.14"]
[WhiteClock "0:00:31"]
[BlackClock "0:00:00"]
[Board "134"]

1. e4 {[%clk 0:03:00]}  c5 {[%clk 0:02:58]} 2. Nf3 {[%clk 0:03:01]}  e6 {[%clk 0:02:58]} 3. d4 {[%clk 0:03:01]}  cxd4 {[%clk 0:02:58]} 4. Nxd4 {[%clk 0:03:02]}  Nf6 {[%clk 0:02:58]} 5. Nc3 {[%clk 0:03:03]}  d6 {[%clk 0:02:59]} 6. g4 {[%clk 0:03:02]}  h6 {[%clk 0:02:58]} 7. Rg1 {[%clk 0:03:02]}  Nc6 {[%clk 0:02:57]} 8. Be3 {[%clk 0:03:00]}  Be7 {[%clk 0:02:54]} 9. Qe2 {[%clk 0:02:51]}  Nxd4 {[%clk 0:02:54]} 10. Bxd4 {[%clk 0:02:52]}  e5 {[%clk 0:02:53]} 11. Be3 {[%clk 0:02:51]}  Be6 {[%clk 0:02:54]} 12. O-O-O {[%clk 0:02:50]}  Nd7 {[%clk 0:02:54]} 13. Nb5 {[%clk 0:02:47]}  Nb6 {[%clk 0:02:52]} 14. Bc5 {[%clk 0:02:39]}  Bc4 {[%clk 0:02:07]} 15. Bxb6 {[%clk 0:01:52]}  Bg5+ {[%clk 0:01:41]} 16. Kb1 {[%clk 0:01:49]}  Bxe2 {[%clk 0:01:37]} 17. Bxd8 {[%clk 0:01:48]}  Bxd1 {[%clk 0:01:37]} 18. Bxg5 {[%clk 0:01:43]}  hxg5 {[%clk 0:01:30]} 19. Nc7+ {[%clk 0:01:42]}  Ke7 {[%clk 0:01:15]} 20. Nxa8 {[%clk 0:01:43]}  Rxa8 {[%clk 0:01:13]} 21. Rg3 {[%clk 0:01:13]}  Rc8 {[%clk 0:00:44]} 22. Bd3 {[%clk 0:01:06]}  Rh8 {[%clk 0:00:26]} 23. Kc1 {[%clk 0:00:52]}  Rxh2 {[%clk 0:00:15]} 24. Kxd1 {[%clk 0:00:53]}  Rxf2 {[%clk 0:00:15]} 25. Be2 {[%clk 0:00:45]}  Rh2 {[%clk 0:00:14]} 26. Rb3 {[%clk 0:00:43]}  b6 {[%clk 0:00:13]} 27. Ra3 {[%clk 0:00:44]}  a5 {[%clk 0:00:08]} 28. Rb3 {[%clk 0:00:44]}  g6 {[%clk 0:00:06]} 29. Rxb6 {[%clk 0:00:44]}  f5 {[%clk 0:00:06]} 30. exf5 {[%clk 0:00:43]}  gxf5 {[%clk 0:00:07]} 31. gxf5 {[%clk 0:00:44]}  Rh1+ {[%clk 0:00:04]} 32. Kd2 {[%clk 0:00:44]}  Rh2 {[%clk 0:00:05]} 33. Rb8 {[%clk 0:00:40]}  g4 {[%clk 0:00:05]} 34. Rg8 {[%clk 0:00:40]}  Kf6 {[%clk 0:00:02]} 35. Rxg4 {[%clk 0:00:39]}  Kxf5 {[%clk 0:00:02]} 36. Ra4 {[%clk 0:00:39]}  d5 {[%clk 0:00:01]} 37. Rxa5 {[%clk 0:00:39]}  d4 {[%clk 0:00:01]} 38. c3 {[%clk 0:00:35]}  Ke4 {[%clk 0:00:01]} 39. cxd4 {[%clk 0:00:34]}  exd4 {[%clk 0:00:00]} 40. Ra3 {[%clk 0:00:31]} 1-0


[Site "https://www.chess.com"]

[Event "Titled Tuesday Blitz November 14 Late 2023"]
[White "Cooper, Aaron"]
[Black "Likvidator228"]
[WhiteFideId "2634945"]
[WhiteElo "2280"]
[BlackElo "2577"]
[Result "0-1"]
[Round "1"]
[TimeControl "180+1"]
[Date "2023.11.14"]
[WhiteClock "0:00:10"]
[BlackClock "0:00:16"]
[Board "135"]

1. e4 {[%clk 0:03:00]}  c5 {[%clk 0:02:57]} 2. Nf3 {[%clk 0:03:00]}  g6 {[%clk 0:02:56]} 3. d4 {[%clk 0:03:00]}  cxd4 {[%clk 0:02:57]} 4. Nxd4 {[%clk 0:03:01]}  Bg7 {[%clk 0:02:57]} 5. c4 {[%clk 0:02:58]}  Nc6 {[%clk 0:02:56]} 6. Be3 {[%clk 0:02:57]}  Nf6 {[%clk 0:02:56]} 7. Nc3 {[%clk 0:02:57]}  Ng4 {[%clk 0:02:53]} 8. Qxg4 {[%clk 0:02:38]}  Bxd4 {[%clk 0:02:50]} 9. Bxd4 {[%clk 0:02:24]}  Nxd4 {[%clk 0:02:49]} 10. Qd1 {[%clk 0:02:25]}  e5 {[%clk 0:02:49]} 11. Be2 {[%clk 0:02:22]}  d6 {[%clk 0:02:48]} 12. O-O {[%clk 0:02:22]}  O-O {[%clk 0:02:48]} 13. Qd2 {[%clk 0:02:16]}  Kg7 {[%clk 0:02:38]} 14. Nd5 {[%clk 0:02:15]}  Be6 {[%clk 0:02:36]} 15. f4 {[%clk 0:02:13]}  Bxd5 {[%clk 0:02:35]} 16. cxd5 {[%clk 0:02:12]}  Qb6 {[%clk 0:02:32]} 17. Kh1 {[%clk 0:02:12]}  f6 {[%clk 0:02:32]} 18. Bd3 {[%clk 0:02:09]}  Rac8 {[%clk 0:02:28]} 19. Rac1 {[%clk 0:02:09]}  a6 {[%clk 0:02:14]} 20. fxe5 {[%clk 0:02:09]}  fxe5 {[%clk 0:02:12]} 21. Qg5 {[%clk 0:02:00]}  Qd8 {[%clk 0:01:39]} 22. Qg4 {[%clk 0:01:59]}  Rxc1 {[%clk 0:01:36]} 23. Rxc1 {[%clk 0:01:59]}  h5 {[%clk 0:01:23]} 24. Qg3 {[%clk 0:01:58]}  Rf7 {[%clk 0:01:17]} 25. h3 {[%clk 0:01:35]}  Qb6 {[%clk 0:01:10]} 26. Rc8 {[%clk 0:01:25]}  Rc7 {[%clk 0:00:30]} 27. Re8 {[%clk 0:01:11]}  Ne2 {[%clk 0:00:26]} 28. Re7+ {[%clk 0:00:31]}  Rxe7 {[%clk 0:00:25]} 29. Bxe2 {[%clk 0:00:31]}  Qxb2 {[%clk 0:00:22]} 30. Bxh5 {[%clk 0:00:30]}  Qc1+ {[%clk 0:00:21]} 31. Kh2 {[%clk 0:00:29]}  Qf4 {[%clk 0:00:21]} 32. Bg4 {[%clk 0:00:25]}  b5 {[%clk 0:00:18]} 33. Bc8 {[%clk 0:00:24]}  a5 {[%clk 0:00:17]} 34. Bg4 {[%clk 0:00:22]}  b4 {[%clk 0:00:17]} 35. Bd1 {[%clk 0:00:22]}  Rc7 {[%clk 0:00:16]} 36. Bb3 {[%clk 0:00:21]}  Rc3 {[%clk 0:00:15]} 37. Qxf4 {[%clk 0:00:21]}  exf4 {[%clk 0:00:16]} 38. Kg1 {[%clk 0:00:21]}  Rxb3 {[%clk 0:00:15]} 39. axb3 {[%clk 0:00:21]}  a4 {[%clk 0:00:15]} 40. bxa4 {[%clk 0:00:18]}  b3 {[%clk 0:00:16]} 41. a5 {[%clk 0:00:10]}  b2 {[%clk 0:00:16]} 0-1


[Site "https://www.chess.com"]

[Event "Titled Tuesday Blitz November 14 Late 2023"]
[White "Sanchez Alvares, Kelvin Antonio"]
[Black "Clawitter, Craig"]
[WhiteFideId "3906680"]
[BlackFideId "2023105"]
[WhiteElo "2577"]
[BlackElo "2276"]
[Result "1-0"]
[Round "1"]
[TimeControl "180+1"]
[Date "2023.11.14"]
[WhiteClock "0:01:08"]
[BlackClock "0:00:02"]
[Board "136"]

1. e4 {[%clk 0:02:59]}  e6 {[%clk 0:03:00]} 2. d4 {[%clk 0:02:53]}  d5 {[%clk 0:03:00]} 3. Nc3 {[%clk 0:02:52]}  Bb4 {[%clk 0:02:59]} 4. e5 {[%clk 0:02:52]}  c5 {[%clk 0:02:59]} 5. a3 {[%clk 0:02:51]}  Bxc3+ {[%clk 0:02:59]} 6. bxc3 {[%clk 0:02:52]}  Ne7 {[%clk 0:02:59]} 7. Qg4 {[%clk 0:02:50]}  Qc7 {[%clk 0:03:00]} 8. Qxg7 {[%clk 0:02:50]}  Rg8 {[%clk 0:03:00]} 9. Qxh7 {[%clk 0:02:50]}  cxd4 {[%clk 0:03:01]} 10. Ne2 {[%clk 0:02:49]}  Nbc6 {[%clk 0:03:01]} 11. f4 {[%clk 0:02:49]}  dxc3 {[%clk 0:03:02]} 12. Qd3 {[%clk 0:02:49]}  d4 {[%clk 0:03:02]} 13. h4 {[%clk 0:02:47]}  b6 {[%clk 0:02:58]} 14. h5 {[%clk 0:02:46]}  Bb7 {[%clk 0:02:55]} 15. h6 {[%clk 0:02:46]}  O-O-O {[%clk 0:02:52]} 16. h7 {[%clk 0:02:46]}  Rh8 {[%clk 0:02:52]} 17. Rh5 {[%clk 0:02:36]}  Nd5 {[%clk 0:02:33]} 18. g3 {[%clk 0:02:27]}  f5 {[%clk 0:02:32]} 19. exf6 {[%clk 0:02:23]}  Nxf6 {[%clk 0:02:32]} 20. Rh6 {[%clk 0:02:19]}  Nxh7 {[%clk 0:02:17]} 21. Bh3 {[%clk 0:02:16]}  Qg7 {[%clk 0:02:00]} 22. Bxe6+ {[%clk 0:02:10]}  Kb8 {[%clk 0:02:00]} 23. Rg6 {[%clk 0:02:08]}  Qe7 {[%clk 0:01:52]} 24. f5 {[%clk 0:02:08]}  Nf8 {[%clk 0:01:48]} 25. Bg5 {[%clk 0:01:50]}  Qc5 {[%clk 0:00:27]} 26. Rh6 {[%clk 0:01:15]}  Rxh6 {[%clk 0:00:18]} 27. Bxh6 {[%clk 0:01:15]}  Nxe6 {[%clk 0:00:18]} 28. fxe6 {[%clk 0:01:16]}  Ne5 {[%clk 0:00:17]} 29. Bf4 {[%clk 0:01:16]}  Re8 {[%clk 0:00:13]} 30. Qf5 {[%clk 0:01:14]}  d3 {[%clk 0:00:06]} 31. Qxe5+ {[%clk 0:01:08]}  Qxe5 {[%clk 0:00:06]} 32. Bxe5+ {[%clk 0:01:08]}  Kc8 {[%clk 0:00:05]} 33. cxd3 {[%clk 0:01:08]}  Rxe6 {[%clk 0:00:05]} 34. d4 {[%clk 0:01:09]}  c2 {[%clk 0:00:04]} 35. Rc1 {[%clk 0:01:08]}  Be4 {[%clk 0:00:05]} 36. Nf4 {[%clk 0:01:08]}  Kb7 {[%clk 0:00:02]} 37. Nxe6 {[%clk 0:01:08]} 1-0


[Site "https://www.chess.com"]

[Event "Titled Tuesday Blitz November 14 Late 2023"]
[White "Martynenko, Ivan"]
[Black "Omelja, Artem"]
[WhiteFideId "2053179"]
[BlackFideId "14119846"]
[WhiteElo "2275"]
[BlackElo "2570"]
[Result "0-1"]
[Round "1"]
[TimeControl "180+1"]
[Date "2023.11.14"]
[WhiteClock "0:00:17"]
[BlackClock "0:00:04"]
[Board "137"]

1. e4 {[%clk 0:03:00]}  c5 {[%clk 0:02:56]} 2. Nf3 {[%clk 0:03:00]}  Nc6 {[%clk 0:02:56]} 3. d4 {[%clk 0:03:00]}  cxd4 {[%clk 0:02:56]} 4. Nxd4 {[%clk 0:03:01]}  Nf6 {[%clk 0:02:56]} 5. Nc3 {[%clk 0:03:01]}  e5 {[%clk 0:02:51]} 6. Ndb5 {[%clk 0:03:01]}  d6 {[%clk 0:02:48]} 7. Bg5 {[%clk 0:03:01]}  a6 {[%clk 0:02:46]} 8. Na3 {[%clk 0:03:00]}  b5 {[%clk 0:02:39]} 9. Nd5 {[%clk 0:03:00]}  Be7 {[%clk 0:02:38]} 10. Bxf6 {[%clk 0:03:01]}  Bxf6 {[%clk 0:02:27]} 11. c3 {[%clk 0:03:01]}  O-O {[%clk 0:02:26]} 12. Be2 {[%clk 0:03:00]}  Bg5 {[%clk 0:02:23]} 13. O-O {[%clk 0:02:58]}  Bb7 {[%clk 0:02:20]} 14. Nc2 {[%clk 0:02:57]}  Ne7 {[%clk 0:02:19]} 15. Ncb4 {[%clk 0:02:53]}  Nxd5 {[%clk 0:01:37]} 16. Nxd5 {[%clk 0:02:52]}  Be7 {[%clk 0:01:37]} 17. a4 {[%clk 0:02:49]}  bxa4 {[%clk 0:01:30]} 18. Rxa4 {[%clk 0:02:48]}  Re8 {[%clk 0:01:31]} 19. Bc4 {[%clk 0:02:38]}  a5 {[%clk 0:01:29]} 20. Qd3 {[%clk 0:02:11]}  Bf8 {[%clk 0:01:25]} 21. Rfa1 {[%clk 0:02:09]}  g6 {[%clk 0:00:58]} 22. g3 {[%clk 0:02:04]}  h5 {[%clk 0:00:55]} 23. h4 {[%clk 0:02:04]}  Bg7 {[%clk 0:00:49]} 24. Qc2 {[%clk 0:01:49]}  Bc6 {[%clk 0:00:41]} 25. R4a3 {[%clk 0:01:45]}  Kh7 {[%clk 0:00:36]} 26. Qd3 {[%clk 0:01:30]}  Rf8 {[%clk 0:00:34]} 27. Bb5 {[%clk 0:01:18]}  Bb7 {[%clk 0:00:34]} 28. c4 {[%clk 0:01:18]}  f5 {[%clk 0:00:32]} 29. Qe3 {[%clk 0:01:14]}  f4 {[%clk 0:00:29]} 30. Qb6 {[%clk 0:00:56]}  fxg3 {[%clk 0:00:21]} 31. fxg3 {[%clk 0:00:56]}  Bxd5 {[%clk 0:00:06]} 32. Qxd8 {[%clk 0:00:53]}  Rfxd8 {[%clk 0:00:07]} 33. exd5 {[%clk 0:00:50]}  e4 {[%clk 0:00:08]} 34. Rxa5 {[%clk 0:00:41]}  Rxa5 {[%clk 0:00:09]} 35. Rxa5 {[%clk 0:00:41]}  Bxb2 {[%clk 0:00:09]} 36. Ra7+ {[%clk 0:00:41]}  Kh6 {[%clk 0:00:08]} 37. Kf1 {[%clk 0:00:41]}  Be5 {[%clk 0:00:08]} 38. Kg2 {[%clk 0:00:37]}  Rf8 {[%clk 0:00:07]} 39. Ra2 {[%clk 0:00:34]}  Bd4 {[%clk 0:00:06]} 40. Re2 {[%clk 0:00:34]}  e3 {[%clk 0:00:06]} 41. Bd7 {[%clk 0:00:29]}  Bc5 {[%clk 0:00:06]} 42. Be6 {[%clk 0:00:27]}  Rb8 {[%clk 0:00:05]} 43. g4 {[%clk 0:00:27]}  hxg4 {[%clk 0:00:05]} 44. Bxg4 {[%clk 0:00:27]}  Rb4 {[%clk 0:00:05]} 45. Kf3 {[%clk 0:00:26]}  Rxc4 {[%clk 0:00:05]} 46. Kg3 {[%clk 0:00:26]}  Rc1 {[%clk 0:00:04]} 47. Kg2 {[%clk 0:00:26]}  Kg7 {[%clk 0:00:04]} 48. Kf3 {[%clk 0:00:26]}  Kf6 {[%clk 0:00:05]} 49. Kg3 {[%clk 0:00:26]}  Ke5 {[%clk 0:00:05]} 50. Kf3 {[%clk 0:00:26]}  Kd4 {[%clk 0:00:05]} 51. Kf4 {[%clk 0:00:26]}  Rf1+ {[%clk 0:00:05]} 52. Kg5 {[%clk 0:00:27]}  Rg1 {[%clk 0:00:04]} 53. Kf4 {[%clk 0:00:26]}  Kd3 {[%clk 0:00:04]} 54. Bf3 {[%clk 0:00:23]}  Rf1 {[%clk 0:00:04]} 55. Ra2 {[%clk 0:00:23]}  Bb4 {[%clk 0:00:04]} 56. Rb2 {[%clk 0:00:23]}  Bc3 {[%clk 0:00:05]} 57. Rb3 {[%clk 0:00:17]}  e2 {[%clk 0:00:04]} 0-1


[Site "https://www.chess.com"]

[Event "Titled Tuesday Blitz November 14 Late 2023"]
[White "Shapiro, Viktor"]
[Black "Kohler, Aran"]
[WhiteFideId "4175700"]
[BlackFideId "1002856"]
[WhiteElo "2568"]
[BlackElo "2272"]
[Result "1-0"]
[Round "1"]
[TimeControl "180+1"]
[Date "2023.11.14"]
[WhiteClock "0:00:16"]
[BlackClock "0:00:00"]
[Board "138"]

1. c4 {[%clk 0:02:57]}  e5 {[%clk 0:02:58]} 2. Nc3 {[%clk 0:02:56]}  Nf6 {[%clk 0:02:58]} 3. g3 {[%clk 0:02:57]}  d5 {[%clk 0:02:56]} 4. cxd5 {[%clk 0:02:56]}  Nxd5 {[%clk 0:02:57]} 5. Bg2 {[%clk 0:02:57]}  Nb6 {[%clk 0:02:56]} 6. Nf3 {[%clk 0:02:56]}  Nc6 {[%clk 0:02:55]} 7. d3 {[%clk 0:02:56]}  Be7 {[%clk 0:02:55]} 8. O-O {[%clk 0:02:55]}  O-O {[%clk 0:02:55]} 9. a3 {[%clk 0:02:55]}  Be6 {[%clk 0:02:54]} 10. b4 {[%clk 0:02:54]}  a6 {[%clk 0:02:53]} 11. Rb1 {[%clk 0:02:53]}  Kh8 {[%clk 0:02:35]} 12. Be3 {[%clk 0:02:53]}  Nd5 {[%clk 0:02:30]} 13. Nxd5 {[%clk 0:02:49]}  Bxd5 {[%clk 0:02:30]} 14. Qc2 {[%clk 0:02:46]}  Bf6 {[%clk 0:02:24]} 15. Rfc1 {[%clk 0:02:39]}  Rc8 {[%clk 0:02:22]} 16. Bc5 {[%clk 0:02:35]}  Re8 {[%clk 0:02:20]} 17. e4 {[%clk 0:02:32]}  Be6 {[%clk 0:02:20]} 18. a4 {[%clk 0:02:27]}  Nd4 {[%clk 0:02:14]} 19. Bxd4 {[%clk 0:02:16]}  exd4 {[%clk 0:02:14]} 20. b5 {[%clk 0:02:12]}  axb5 {[%clk 0:02:11]} 21. Rxb5 {[%clk 0:02:11]}  b6 {[%clk 0:02:11]} 22. a5 {[%clk 0:01:56]}  bxa5 {[%clk 0:02:07]} 23. Rxa5 {[%clk 0:01:53]}  c6 {[%clk 0:02:07]} 24. Rc5 {[%clk 0:01:52]}  Bd7 {[%clk 0:02:06]} 25. e5 {[%clk 0:01:47]}  Be7 {[%clk 0:02:01]} 26. Rc4 {[%clk 0:01:41]}  c5 {[%clk 0:02:01]} 27. Nd2 {[%clk 0:01:37]}  Bb5 {[%clk 0:01:59]} 28. f4 {[%clk 0:01:33]}  Bxc4 {[%clk 0:01:59]} 29. Nxc4 {[%clk 0:01:32]}  Bf8 {[%clk 0:01:58]} 30. Be4 {[%clk 0:01:29]}  Rb8 {[%clk 0:01:53]} 31. Ra1 {[%clk 0:01:28]}  Qc7 {[%clk 0:01:50]} 32. Qd1 {[%clk 0:01:25]}  g6 {[%clk 0:01:50]} 33. h4 {[%clk 0:01:21]}  Qd7 {[%clk 0:01:45]} 34. Kg2 {[%clk 0:01:14]}  Rb4 {[%clk 0:01:45]} 35. h5 {[%clk 0:01:12]}  Reb8 {[%clk 0:01:44]} 36. hxg6 {[%clk 0:01:12]}  hxg6 {[%clk 0:01:40]} 37. Qe2 {[%clk 0:00:55]}  Kg8 {[%clk 0:01:35]} 38. Ra6 {[%clk 0:00:47]}  Bg7 {[%clk 0:01:31]} 39. Rd6 {[%clk 0:00:37]}  Qa7 {[%clk 0:01:29]} 40. e6 {[%clk 0:00:34]}  Qa1 {[%clk 0:01:18]} 41. e7 {[%clk 0:00:19]}  Re8 {[%clk 0:01:09]} 42. Rd8 {[%clk 0:00:19]}  Rb8 {[%clk 0:01:07]} 43. Rxb8 {[%clk 0:00:19]}  Rxb8 {[%clk 0:01:06]} 44. Bc6 {[%clk 0:00:19]}  Kh7 {[%clk 0:00:44]} 45. e8=Q {[%clk 0:00:19]}  Rxe8 {[%clk 0:00:43]} 46. Bxe8 {[%clk 0:00:20]}  Qa7 {[%clk 0:00:40]} 47. Bc6 {[%clk 0:00:19]}  Qc7 {[%clk 0:00:39]} 48. Be4 {[%clk 0:00:19]}  f5 {[%clk 0:00:39]} 49. Bd5 {[%clk 0:00:19]}  Qd7 {[%clk 0:00:39]} 50. Qe6 {[%clk 0:00:19]}  Qa4 {[%clk 0:00:39]} 51. Qg8+ {[%clk 0:00:18]}  Kh6 {[%clk 0:00:39]} 52. Qe6 {[%clk 0:00:17]}  Qc2+ {[%clk 0:00:39]} 53. Kh3 {[%clk 0:00:17]}  Qxd3 {[%clk 0:00:39]} 54. Nd6 {[%clk 0:00:17]}  Qf1+ {[%clk 0:00:39]} 55. Bg2 {[%clk 0:00:16]}  Qd1 {[%clk 0:00:38]} 56. Nxf5+ {[%clk 0:00:16]}  Kh7 {[%clk 0:00:37]} 57. Nxg7 {[%clk 0:00:16]}  Kxg7 {[%clk 0:00:36]} 58. Qe7+ {[%clk 0:00:17]}  Kh6 {[%clk 0:00:36]} 59. Qh4+ {[%clk 0:00:17]}  Kg7 {[%clk 0:00:36]} 60. Qg5 {[%clk 0:00:18]}  Qh5+ {[%clk 0:00:32]} 61. Qxh5 {[%clk 0:00:18]}  gxh5 {[%clk 0:00:33]} 62. Bf1 {[%clk 0:00:18]}  Kf6 {[%clk 0:00:32]} 63. Bd3 {[%clk 0:00:18]}  Ke6 {[%clk 0:00:32]} 64. Kh4 {[%clk 0:00:19]}  Kd5 {[%clk 0:00:32]} 65. Kxh5 {[%clk 0:00:19]}  c4 {[%clk 0:00:33]} 66. Bf1 {[%clk 0:00:19]}  d3 {[%clk 0:00:33]} 67. f5 {[%clk 0:00:19]}  Kd4 {[%clk 0:00:32]} 68. f6 {[%clk 0:00:19]}  c3 {[%clk 0:00:31]} 69. Bxd3 {[%clk 0:00:19]}  Kxd3 {[%clk 0:00:30]} 70. f7 {[%clk 0:00:20]}  c2 {[%clk 0:00:31]} 71. f8=Q {[%clk 0:00:20]}  c1=Q {[%clk 0:00:31]} 72. Qf5+ {[%clk 0:00:20]}  Ke2 {[%clk 0:00:31]} 73. Qg4+ {[%clk 0:00:20]}  Kd3 {[%clk 0:00:28]} 74. Qf4 {[%clk 0:00:20]}  Qh1+ {[%clk 0:00:24]} 75. Kg5 {[%clk 0:00:20]}  Qh8 {[%clk 0:00:22]} 76. Qf5+ {[%clk 0:00:18]}  Ke3 {[%clk 0:00:22]} 77. g4 {[%clk 0:00:17]}  Qg7+ {[%clk 0:00:21]} 78. Qg6 {[%clk 0:00:17]}  Qe5+ {[%clk 0:00:21]} 79. Kh6 {[%clk 0:00:17]}  Qh8+ {[%clk 0:00:21]} 80. Qh7 {[%clk 0:00:17]}  Qf6+ {[%clk 0:00:21]} 81. Kh5 {[%clk 0:00:17]}  Qe5+ {[%clk 0:00:19]} 82. g5 {[%clk 0:00:17]}  Qh2+ {[%clk 0:00:19]} 83. Kg6 {[%clk 0:00:17]}  Qc2+ {[%clk 0:00:19]} 84. Kg7 {[%clk 0:00:17]}  Qc7+ {[%clk 0:00:19]} 85. Kh8 {[%clk 0:00:17]}  Qd8+ {[%clk 0:00:19]} 86. Qg8 {[%clk 0:00:17]}  Qd4+ {[%clk 0:00:19]} 87. Qg7 {[%clk 0:00:17]}  Qh4+ {[%clk 0:00:18]} 88. Kg8 {[%clk 0:00:17]}  Qc4+ {[%clk 0:00:18]} 89. Qf7 {[%clk 0:00:16]}  Qc8+ {[%clk 0:00:15]} 90. Kg7 {[%clk 0:00:17]}  Qc3+ {[%clk 0:00:12]} 91. Kh7 {[%clk 0:00:16]}  Qd3+ {[%clk 0:00:11]} 92. g6 {[%clk 0:00:16]}  Qe4 {[%clk 0:00:10]} 93. Kg7 {[%clk 0:00:15]}  Qe5+ {[%clk 0:00:08]} 94. Qf6 {[%clk 0:00:15]}  Qc7+ {[%clk 0:00:08]} 95. Kf8 {[%clk 0:00:15]}  Qc8+ {[%clk 0:00:00]} 96. Kf7 {[%clk 0:00:16]} 1-0


[Site "https://www.chess.com"]